fUSD/lending_fUSD_20241125
["ID","MTS","AMOUNT","RATE_DAILY","PERIOD"]
[343267172,1732536680073,-500.0,0.00041095,120]
[343267173,1732536680082,-1000.0,0.00041095,120]
[343267174,1732536680092,-500.0,0.00041095,21]
[343267175,1732536680106,-915.74,0.00041095,21]
[343267176,1732536680118,-500.0,0.00041095,21]
[343267177,1732536680128,-529.4,0.00041095,21]
[343267178,1732536680138,-465.53350447,0.00041095,21]
[343267179,1732536680150,-500.0,0.00041095,21]
[343267180,1732536680160,-661.32,0.00041095,21]
[343267181,1732536680173,-592.89,0.00041095,21]
[343267182,1732536680183,-596.54,0.00041095,21]
[343267183,1732536680193,-500.0,0.00041095,21]
[343267184,1732536680203,-500.0,0.00041095,21]
[343267185,1732536680213,-501.9,0.00041095,21]
[343267186,1732536680224,-151.0,0.00041095,14]
[343267187,1732536680233,-151.0,0.00041095,14]
[343267188,1732536680243,-500.0,0.00041095,21]
[343267189,1732536680252,-567.76,0.00041095,21]
[343267190,1732536680261,-615.05,0.00041095,21]
[343267191,1732536680271,-500.0,0.00041095,21]
[343267192,1732536680280,-890.91,0.00041095,21]
[343267193,1732536680290,-2082.25,0.00041095,21]
[343267194,1732536680299,-495.68006678,0.00041095,21]
[343267195,1732536680309,-183.79,0.00041095,21]
[343267196,1732536680319,-500.0,0.00041095,21]
[343267197,1732536680328,-500.0,0.00041095,21]
[343267198,1732536680339,-500.0,0.00041095,21]
[343267199,1732536680349,-500.0,0.00041095,21]
[343267200,1732536680358,-206.835515,0.00041095,14]
[343267201,1732536680371,-206.835515,0.00041095,14]
[343267202,1732536680380,-500.0,0.00041095,21]
[343267203,1732536680391,-500.0,0.00041095,21]
[343267204,1732536680401,-500.0,0.00041095,21]
[343267205,1732536680411,-500.0,0.00041095,21]
[343267206,1732536680420,-500.0,0.00041095,21]
[343267207,1732536680429,-648.22,0.00041095,21]
[343267208,1732536680440,-500.0,0.00041095,21]
[343267209,1732536680449,-500.0,0.00041095,21]
[343267210,1732536680460,-903.22,0.00041095,21]
[343267211,1732536680470,-500.0,0.00041095,21]
[343267212,1732536680479,-185.9,0.00041095,21]
[343267213,1732536680490,-500.0,0.00041095,21]
[343267214,1732536680499,-500.0,0.00041095,21]
[343267215,1732536680509,-500.0,0.00041095,21]
[343267216,1732536680519,-1204.4,0.00041095,21]
[343267217,1732536680529,-500.0,0.00041095,21]
[343267218,1732536680538,-783.23,0.00041095,21]
[343267219,1732536680548,-500.0,0.00041095,21]
[343267220,1732536680558,-414.49836921,0.00041095,21]
[343267221,1732536680568,-500.0,0.00041095,21]
[343267222,1732536680578,-500.0,0.00041095,21]
[343267223,1732536680587,-1024.03,0.00041095,21]
[343267224,1732536680597,-500.0,0.00041095,21]
[343267225,1732536680607,-500.0,0.00041095,21]
[343267226,1732536680618,-500.0,0.00041095,21]
[343267227,1732536680627,-397.54607472,0.00041095,21]
[343267228,1732536680637,-500.0,0.00041095,21]
[343267229,1732536680647,-500.0,0.00041095,21]
[343267230,1732536680656,-500.0,0.00041095,21]
[343267231,1732536680666,-457.45055202,0.00041095,21]
[343267232,1732536680675,-500.0,0.00041095,21]
[343267233,1732536680684,-500.0,0.00041095,21]
[343267234,1732536680694,-2874.42,0.00041095,21]
[343267235,1732536680703,-634.92,0.00041095,21]
[343267236,1732536680712,-500.0,0.00041095,21]
[343267237,1732536680721,-775.26,0.00041095,21]
[343267238,1732536680731,-500.0,0.00041095,21]
[343267239,1732536680740,-552.41,0.00041095,21]
[343267240,1732536680749,-500.0,0.00041095,7]
[343267241,1732536680758,-500.0,0.00041095,21]
[343267242,1732536680767,-3082.64,0.00041095,21]
[343267243,1732536680776,-500.0,0.00041095,21]
[343267244,1732536680786,-500.0,0.00041095,21]
[343267245,1732536680795,-500.0,0.00041095,21]
[343267246,1732536680804,-689.26,0.00041095,21]
[343267247,1732536680813,-739.61,0.00041095,21]
[343267248,1732536680823,-500.0,0.00041095,21]
[343267249,1732536680832,-3431.21,0.00041095,21]
[343267250,1732536680841,-500.0,0.00041095,21]
[343267251,1732536680850,-535.48,0.00041095,21]
[343267252,1732536680859,-2326.47,0.00041095,21]
[343267253,1732536680870,-817.33,0.00041095,21]
[343267254,1732536680880,-939.05,0.00041095,21]
[343267255,1732536680889,-8053.63,0.00041095,21]
[343267256,1732536680898,-576.02,0.00041095,21]
[343267257,1732536680907,-8604.27,0.00041095,21]
[343267258,1732536680916,-168.017315,0.00041095,21]
[343267259,1732536680925,-659.22,0.00041095,21]
[343267260,1732536680935,-500.0,0.00041095,21]
[343267261,1732536680944,-674.77,0.00041095,2]
[343267262,1732536680953,-500.0,0.00041095,21]
[343267263,1732536680962,-897.77,0.00041095,21]
[343267264,1732536680971,-500.0,0.00041095,21]
[343267265,1732536680981,-500.0,0.00041095,21]
[343267266,1732536680990,-500.0,0.00041095,21]
[343267267,1732536681000,-5549.98,0.00041095,21]
[343267268,1732536681009,-500.0,0.00041095,21]
[343267269,1732536681019,-500.0,0.00041095,21]
[343267270,1732536681028,-747.44,0.00041095,21]
[343267271,1732536681038,-1247.78,0.00041095,21]
[343267272,1732536681047,-726.59,0.00041095,21]
[343267273,1732536681058,-1129.77,0.00041095,21]
[343267274,1732536681067,-963.68,0.00041095,21]
[343267275,1732536681077,-3123.05,0.00041095,21]
[343267276,1732536681086,-500.0,0.00041095,21]
[343267277,1732536681096,-500.0,0.00041095,21]
[343267278,1732536681107,-599.37130319,0.00041095,21]
[343267279,1732536681119,-547.96,0.00041095,21]
[343267280,1732536681128,-727.18,0.00041095,21]
[343267281,1732536681138,-685.58,0.00041095,21]
[343267282,1732536681148,-8008.7,0.00041095,21]
[343267283,1732536681157,-500.0,0.00041095,21]
[343267284,1732536681169,-500.0,0.00041095,21]
[343267285,1732536681178,-913.31,0.00041095,21]
[343267286,1732536681188,-463.41781114,0.00041095,21]
[343267287,1732536681198,-1103.1,0.00041095,21]
[343267288,1732536681208,-1042.25,0.00041095,21]
[343267289,1732536681218,-525.44,0.00041095,21]
[343267290,1732536681227,-500.0,0.00041095,21]
[343267291,1732536681237,-714.29,0.00041095,21]
[343267292,1732536681247,-1098.83,0.00041095,21]
[343267293,1732536681256,-2000.0,0.00041095,120]
[343267294,1732536681266,-599.99,0.00041095,21]
[343267295,1732536681275,-500.0,0.00041095,21]
[343267296,1732536681284,-500.0,0.00041095,21]
[343267297,1732536681294,-536.64,0.00041095,21]
[343267298,1732536681303,-500.0,0.00041095,21]
[343267299,1732536681313,-3141.32,0.00041095,21]
[343267300,1732536681323,-500.0,0.00041095,21]
[343267301,1732536681333,-1749.61,0.00041095,21]
[343267302,1732536681343,-520.31,0.00041095,21]
[343267303,1732536681352,-3086.47,0.00041095,21]
[343267304,1732536681362,-999.78,0.00041095,21]
[343267305,1732536681373,-702.08,0.00041095,21]
[343267306,1732536681382,-516.76,0.00041095,21]
[343267307,1732536681392,-500.0,0.00041095,21]
[343267308,1732536681401,-151.0,0.00041095,14]
[343267309,1732536681410,-599.84,0.00041095,21]
[343267310,1732536681419,-500.0,0.00041095,21]
[343267311,1732536681429,-843.37,0.00041095,21]
[343267312,1732536681439,-897.11,0.00041095,21]
[343267313,1732536681448,-500.0,0.00041095,21]
[343267314,1732536681458,-1516.6,0.00041095,21]
[343267315,1732536681467,-151.0,0.00041095,14]
[343267316,1732536681476,-4321.07,0.00041095,21]
[343267317,1732536681485,-151.0,0.00041095,14]
[343267318,1732536681495,-1501.72,0.00041095,21]
[343267319,1732536681504,-500.0,0.00041095,21]
[343267320,1732536681513,-1062.06,0.00041095,120]
[343267321,1732536681522,-21441.79,0.00041095,21]
[343267322,1732536681531,-3276.7,0.00041095,21]
[343267323,1732536681541,-231.03,0.00041095,21]
[343267324,1732536681550,-2182.69,0.00041095,21]
[343267325,1732536681560,-182.77,0.00041095,21]
[343267326,1732536681570,-500.0,0.00041095,21]
[343267327,1732536681579,-2334.22,0.00041095,21]
[343267328,1732536681589,-1941.42,0.00041095,21]
[343267329,1732536681598,-500.0,0.00041095,21]
[343267330,1732536681608,-1034.74,0.00041095,21]
[343267331,1732536681619,-548.14,0.00041095,21]
[343267332,1732536681628,-500.0,0.00041095,21]
[343267333,1732536681638,-1055.46,0.00041095,21]
[343267334,1732536681648,-248.0,0.00041096,2]
[343267335,1732536681657,-150.78,0.00041096,2]
[343267336,1732536681667,-245.43187106,0.00041096,2]
[343267337,1732536681676,-423.32987576,0.00041096,31]
[343267338,1732536681686,-500.0,0.00041137,21]
[343267339,1732536681696,-500.0,0.00041137,21]
[343267340,1732536681706,-277.13,0.00041137,21]
[343267341,1732536681716,-500.0,0.00041137,21]
[343267342,1732536681726,-771.52,0.00041137,21]
[343267343,1732536681736,-366.04,0.00041137,21]
[343267344,1732536681746,-500.0,0.00041137,21]
[343267345,1732536681756,-614.9,0.00041137,21]
[343267346,1732536681765,-500.0,0.00041137,21]
[343267347,1732536681775,-500.0,0.00041137,21]
[343267348,1732536681785,-500.0,0.00041137,21]
[343267349,1732536681794,-317.27,0.00041137,21]
[343267350,1732536681802,-444.55,0.00041137,21]
[343267351,1732536681812,-318.02,0.00041137,21]
[343267352,1732536681822,-501.28,0.00041137,21]
[343267353,1732536681831,-658.45,0.00041137,21]
[343267354,1732536681840,-1976.25,0.00041137,21]
[343267355,1732536681850,-500.0,0.00041137,21]
[343267356,1732536681859,-500.0,0.00041137,21]
[343267357,1732536681871,-411.36,0.00041137,21]
[343267358,1732536681881,-500.0,0.00041137,21]
[343267359,1732536681890,-500.0,0.00041137,21]
[343267360,1732536681900,-876.13,0.00041137,21]
[343267361,1732536681909,-500.0,0.00041137,21]
[343267362,1732536681919,-514.52,0.00041137,21]
[343267363,1732536681929,-500.0,0.00041137,21]
[343267364,1732536681938,-500.0,0.00041137,21]
[343267365,1732536681948,-237.20279138,0.00041137,21]
[343267366,1732536681957,-500.0,0.00041137,21]
[343267367,1732536681967,-500.0,0.00041137,21]
[343267368,1732536681976,-500.0,0.00041137,21]
[343267369,1732536681985,-7241.01,0.00041137,21]
[343267370,1732536681995,-151.0,0.00041137,14]
[343267371,1732536682004,-1484.3,0.00041137,21]
[343267372,1732536682014,-354.2,0.00041137,21]
[343267373,1732536682024,-656.71,0.00041137,21]
[343267374,1732536682034,-164.738004,0.00041137,14]
[343267375,1732536682043,-1219.29,0.00041137,21]
[343267376,1732536682053,-500.0,0.00041137,21]
[343267377,1732536682063,-1044.42,0.00041137,21]
[343267378,1732536682072,-5313.62,0.00041137,21]
[343267379,1732536682082,-635.51,0.00041137,21]
[343267380,1732536682092,-500.0,0.00041137,21]
[343267381,1732536682105,-1329.57,0.00041137,21]
[343267382,1732536682117,-500.0,0.00041137,21]
[343267383,1732536682128,-3316.78,0.00041137,21]
[343267384,1732536682139,-500.0,0.00041137,21]
[343267385,1732536682150,-411.07351558,0.00041137,21]
[343267386,1732536682159,-500.0,0.00041137,21]
[343267387,1732536682169,-913.11,0.00041137,21]
[343267388,1732536682179,-528.36,0.00041137,21]
[343267389,1732536682190,-1044.85,0.00041137,21]
[343267390,1732536682200,-500.0,0.00041137,21]
[343267391,1732536682209,-1961.52,0.00041137,21]
[343267392,1732536682219,-500.0,0.00041137,21]
[343267393,1732536682228,-500.0,0.00041137,21]
[343267394,1732536682238,-1014.5,0.00041137,21]
[343267395,1732536682248,-1204.64,0.00041137,21]
[343267396,1732536682257,-500.0,0.00041137,21]
[343267397,1732536682267,-2806.06,0.00041137,21]
[343267398,1732536682277,-713.37,0.00041137,21]
[343267399,1732536682287,-2152.31,0.00041137,21]
[343267400,1732536682297,-500.0,0.00041137,21]
[343267401,1732536682307,-2862.22,0.00041137,21]
[343267402,1732536682317,-500.0,0.00041137,21]
[343267403,1732536682326,-818.24,0.00041137,21]
[343267404,1732536682336,-594.32,0.00041137,21]
[343267405,1732536682345,-5698.56,0.00041137,21]
[343267406,1732536682355,-2231.16,0.00041137,21]
[343267407,1732536682370,-500.0,0.00041137,21]
[343267408,1732536682381,-3033.86,0.00041137,21]
[343267409,1732536682391,-500.0,0.00041137,21]
[343267410,1732536682401,-180.16225,0.00041139,2]
[343267411,1732536682411,-500.0,0.00041231,7]
[343267412,1732536682420,-190.65596399,0.0004124,28]
[343267413,1732536682430,-157.68,0.00041315,2]
[343267414,1732536682440,-500.0,0.00041368,7]
[343267415,1732536682449,-574.77,0.00041368,21]
[343267416,1732536682459,-574.77,0.00041368,21]
[343267417,1732536682468,-574.77,0.00041368,21]
[343267418,1732536682477,-574.77,0.00041368,21]
[343267419,1732536682487,-574.9,0.00041368,21]
[343267420,1732536682496,-500.0,0.00041369,21]
[343267421,1732536682506,-289.5,0.00041369,21]
[343267422,1732536682515,-500.0,0.00041369,21]
[343267423,1732536682524,-2609.3,0.00041369,60]
[343267424,1732536682533,-675.2,0.00041369,21]
[343267425,1732536682542,-500.0,0.00041369,21]
[343267426,1732536682551,-1143.4,0.00041369,21]
[343267427,1732536682561,-553.02,0.00041369,21]
[343267428,1732536682571,-500.0,0.00041369,21]
[343267429,1732536682581,-500.0,0.00041369,21]
[343267430,1732536682590,-660.04,0.00041369,21]
[343267431,1732536682599,-550.37,0.00041369,21]
[343267432,1732536682609,-500.0,0.00041369,120]
[343267433,1732536682620,-500.0,0.00041369,21]
[343267434,1732536682629,-915.74,0.00041369,21]
[343267435,1732536682638,-500.0,0.00041369,21]
[343267436,1732536682648,-529.4,0.00041369,21]
[343267437,1732536682658,-500.0,0.00041369,21]
[343267438,1732536682667,-661.32,0.00041369,21]
[343267439,1732536682677,-592.89,0.00041369,21]
[343267440,1732536682687,-596.54,0.00041369,21]
[343267441,1732536682696,-500.0,0.00041369,21]
[343267442,1732536682705,-500.0,0.00041369,21]
[343267443,1732536682714,-501.9,0.00041369,21]
[343267444,1732536682724,-500.0,0.00041369,21]
[343267445,1732536682733,-615.05,0.00041369,21]
[343267446,1732536682743,-500.0,0.00041369,21]
[343267447,1732536682752,-890.91,0.00041369,21]
[343267448,1732536682761,-2082.25,0.00041369,21]
[343267449,1732536682771,-500.0,0.00041369,21]
[343267450,1732536682780,-500.0,0.00041369,21]
[343267451,1732536682789,-500.0,0.00041369,21]
[343267452,1732536682798,-500.0,0.00041369,21]
[343267453,1732536682808,-500.0,0.00041369,21]
[343267454,1732536682817,-500.0,0.00041369,21]
[343267455,1732536682827,-500.0,0.00041369,21]
[343267456,1732536682835,-500.0,0.00041369,21]
[343267457,1732536682844,-440.57,0.00041369,21]
[343267458,1732536682854,-648.22,0.00041369,21]
[343267459,1732536682864,-500.0,0.00041369,21]
[343267460,1732536682875,-500.0,0.00041369,21]
[343267461,1732536682886,-903.22,0.00041369,21]
[343267462,1732536682895,-500.0,0.00041369,21]
[343267463,1732536682904,-500.0,0.00041369,21]
[343267464,1732536682914,-500.0,0.00041369,21]
[343267465,1732536682923,-500.0,0.00041369,21]
[343267466,1732536682932,-500.0,0.00041369,21]
[343267467,1732536682942,-1204.4,0.00041369,21]
[343267468,1732536683117,-783.23,0.00041369,21]
[343267469,1732536683127,-500.0,0.00041369,21]
[343267470,1732536683138,-500.0,0.00041369,21]
[343267471,1732536683150,-500.0,0.00041369,21]
[343267472,1732536683160,-1024.03,0.00041369,21]
[343267473,1732536683170,-500.0,0.00041369,21]
[343267474,1732536683181,-500.0,0.00041369,21]
[343267475,1732536683191,-500.0,0.00041369,21]
[343267476,1732536683201,-500.0,0.00041369,21]
[343267477,1732536683211,-528.05785152,0.00041369,21]
[343267478,1732536683220,-151.0,0.00041369,14]
[343267479,1732536683231,-151.0,0.00041369,14]
[343267480,1732536683240,-500.0,0.00041369,21]
[343267481,1732536683249,-500.0,0.00041369,21]
[343267482,1732536683260,-2874.42,0.00041369,21]
[343267483,1732536683269,-634.92,0.00041369,21]
[343267484,1732536683279,-500.0,0.00041369,21]
[343267485,1732536683289,-775.26,0.00041369,21]
[343267486,1732536683298,-500.0,0.00041369,21]
[343267487,1732536683308,-552.41,0.00041369,21]
[343267488,1732536683317,-500.0,0.00041369,7]
[343267489,1732536683327,-500.0,0.00041369,21]
[343267490,1732536683337,-3082.64,0.00041369,21]
[343267491,1732536683347,-500.0,0.00041369,21]
[343267492,1732536683356,-482.39,0.00041369,21]
[343267493,1732536683366,-500.0,0.00041369,21]
[343267494,1732536683376,-689.26,0.00041369,21]
[343267495,1732536683385,-739.61,0.00041369,21]
[343267496,1732536683395,-500.0,0.00041369,21]
[343267497,1732536683405,-3431.21,0.00041369,21]
[343267498,1732536683415,-500.0,0.00041369,21]
[343267499,1732536683424,-535.48,0.00041369,21]
[343267500,1732536683435,-2326.47,0.00041369,21]
[343267501,1732536683444,-817.33,0.00041369,21]
[343267502,1732536683454,-8053.63,0.00041369,21]
[343267503,1732536683464,-939.05,0.00041369,21]
[343267504,1732536683474,-576.02,0.00041369,21]
[343267505,1732536683483,-8604.27,0.00041369,21]
[343267506,1732536683494,-659.22,0.00041369,21]
[343267507,1732536683503,-500.0,0.00041369,21]
[343267508,1732536683513,-674.77,0.00041369,2]
[343267509,1732536683523,-500.0,0.00041369,21]
[343267510,1732536683532,-897.77,0.00041369,21]
[343267511,1732536683542,-500.0,0.00041369,21]
[343267512,1732536683551,-301.05642384,0.00041369,21]
[343267513,1732536683560,-500.0,0.00041369,21]
[343267514,1732536683570,-5549.98,0.00041369,21]
[343267515,1732536683579,-500.0,0.00041369,21]
[343267516,1732536683589,-500.0,0.00041369,21]
[343267517,1732536683598,-747.44,0.00041369,21]
[343267518,1732536683607,-1247.78,0.00041369,21]
[343267519,1732536683621,-726.59,0.00041369,21]
[343267520,1732536683631,-1129.77,0.00041369,21]
[343267521,1732536683641,-963.68,0.00041369,21]
[343267522,1732536683650,-3123.05,0.00041369,21]
[343267523,1732536683660,-500.0,0.00041369,21]
[343267524,1732536683670,-500.0,0.00041369,21]
[343267525,1732536683680,-547.96,0.00041369,21]
[343267526,1732536683690,-727.18,0.00041369,21]
[343267527,1732536683699,-685.58,0.00041369,21]
[343267528,1732536683710,-8008.7,0.00041369,21]
[343267529,1732536683719,-500.0,0.00041369,21]
[343267530,1732536683729,-500.0,0.00041369,21]
[343267531,1732536683738,-913.31,0.00041369,21]
[343267532,1732536683748,-1103.1,0.00041369,21]
[343267533,1732536683761,-1042.25,0.00041369,21]
[343267534,1732536683772,-525.44,0.00041369,21]
[343267535,1732536683782,-500.0,0.00041369,21]
[343267536,1732536683792,-714.29,0.00041369,21]
[343267537,1732536683802,-1098.83,0.00041369,21]
[343267538,1732536683812,-599.99,0.00041369,21]
[343267539,1732536683822,-500.0,0.00041369,21]
[343267540,1732536683832,-500.0,0.00041369,21]
[343267541,1732536683841,-536.64,0.00041369,21]
[343267542,1732536683851,-500.0,0.00041369,21]
[343267543,1732536683860,-3141.32,0.00041369,21]
[343267544,1732536683873,-500.0,0.00041369,21]
[343267545,1732536683883,-1749.61,0.00041369,21]
[343267546,1732536683893,-520.31,0.00041369,21]
[343267547,1732536683903,-3086.47,0.00041369,21]
[343267548,1732536683912,-999.78,0.00041369,21]
[343267549,1732536683922,-702.08,0.00041369,21]
[343267550,1732536683932,-516.76,0.00041369,21]
[343267551,1732536683942,-500.0,0.00041369,21]
[343267552,1732536683951,-599.84,0.00041369,21]
[343267553,1732536683961,-500.0,0.00041369,21]
[343267554,1732536683972,-843.37,0.00041369,21]
[343267555,1732536683982,-897.11,0.00041369,21]
[343267556,1732536683991,-500.0,0.00041369,21]
[343267557,1732536684001,-1516.6,0.00041369,21]
[343267558,1732536684011,-4321.07,0.00041369,21]
[343267559,1732536684021,-1501.72,0.00041369,21]
[343267560,1732536684031,-500.0,0.00041369,21]
[343267561,1732536684041,-21441.79,0.00041369,21]
[343267562,1732536684050,-3276.7,0.00041369,21]
[343267563,1732536684059,-2182.69,0.00041369,21]
[343267564,1732536684069,-500.0,0.00041369,21]
[343267565,1732536684078,-2334.22,0.00041369,21]
[343267566,1732536684088,-1941.42,0.00041369,21]
[343267567,1732536684097,-500.0,0.00041369,21]
[343267568,1732536684110,-1034.74,0.00041369,21]
[343267569,1732536684122,-548.14,0.00041369,21]
[343267570,1732536684131,-500.0,0.00041369,21]
[343267571,1732536684141,-1055.46,0.00041369,21]
[343267572,1732536684151,-195.88075,0.00041408,2]
[343267573,1732536684161,-264.435,0.00041408,2]
[343267574,1732536684172,-170.663,0.00041408,2]
[343267575,1732536684185,-500.0,0.00041411,21]
[343267576,1732536684196,-500.0,0.00041411,21]
[343267577,1732536684206,-500.0,0.00041411,21]
[343267578,1732536684215,-771.52,0.00041411,21]
[343267579,1732536684225,-500.0,0.00041411,21]
[343267580,1732536684234,-500.0,0.00041411,21]
[343267581,1732536684244,-419.65,0.00041411,21]
[343267582,1732536684254,-500.0,0.00041411,21]
[343267583,1732536684263,-658.45,0.00041411,21]
[343267584,1732536684273,-1976.25,0.00041411,21]
[343267585,1732536684283,-500.0,0.00041411,21]
[343267586,1732536684292,-500.0,0.00041411,21]
[343267587,1732536684302,-500.0,0.00041411,21]
[343267588,1732536684311,-500.0,0.00041411,21]
[343267589,1732536684322,-876.13,0.00041411,21]
[343267590,1732536684332,-500.0,0.00041411,21]
[343267591,1732536684341,-514.52,0.00041411,21]
[343267592,1732536684350,-500.0,0.00041411,21]
[343267593,1732536684359,-500.0,0.00041411,21]
[343267594,1732536684370,-500.0,0.00041411,21]
[343267595,1732536684380,-500.0,0.00041411,21]
[343267596,1732536684389,-500.0,0.00041411,21]
[343267597,1732536684399,-7241.01,0.00041411,21]
[343267598,1732536684408,-1484.3,0.00041411,21]
[343267599,1732536684418,-656.71,0.00041411,21]
[343267600,1732536684427,-1219.29,0.00041411,21]
[343267601,1732536684436,-320.32,0.00041411,21]
[343267602,1732536684445,-1044.42,0.00041411,21]
[343267603,1732536684455,-5313.62,0.00041411,21]
[343267604,1732536684463,-635.51,0.00041411,21]
[343267605,1732536684473,-500.0,0.00041411,21]
[343267606,1732536684482,-1329.57,0.00041411,21]
[343267607,1732536684491,-500.0,0.00041411,21]
[343267608,1732536684500,-3316.78,0.00041411,21]
[343267609,1732536684509,-500.0,0.00041411,21]
[343267610,1732536684519,-500.0,0.00041411,21]
[343267611,1732536684528,-913.11,0.00041411,21]
[343267612,1732536684539,-528.36,0.00041411,21]
[343267613,1732536684549,-1044.85,0.00041411,21]
[343267614,1732536684558,-500.0,0.00041411,21]
[343267615,1732536684567,-1961.52,0.00041411,21]
[343267616,1732536684576,-500.0,0.00041411,21]
[343267617,1732536684586,-500.0,0.00041411,21]
[343267618,1732536684596,-1014.5,0.00041411,21]
[343267619,1732536684605,-1204.64,0.00041411,21]
[343267620,1732536684616,-500.0,0.00041411,21]
[343267621,1732536684626,-2806.06,0.00041411,21]
[343267622,1732536684636,-713.37,0.00041411,21]
[343267623,1732536684646,-2152.31,0.00041411,21]
[343267624,1732536684656,-500.0,0.00041411,21]
[343267625,1732536684666,-2862.22,0.00041411,21]
[343267626,1732536684675,-500.0,0.00041411,21]
[343267627,1732536684684,-818.24,0.00041411,21]
[343267628,1732536684693,-594.32,0.00041411,21]
[343267629,1732536684703,-5698.56,0.00041411,21]
[343267630,1732536684712,-2231.16,0.00041411,21]
[343267631,1732536684722,-461.5,0.00041411,21]
[343267632,1732536684731,-3033.86,0.00041411,21]
[343267633,1732536684741,-575.26,0.00041411,21]
[343267634,1732536684751,-2000.0,0.0004148,2]
[343267635,1732536684761,-1600.0,0.0004148,2]
[343267636,1732536684771,-500.0,0.00041505,7]
[343267637,1732536684781,-1062.06,0.00041506,120]
[343267638,1732536684790,-152.0,0.00041524,3]
[343267639,1732536684800,-273.81,0.00041579,120]
[343267640,1732536684810,-500.0,0.00041642,7]
[343267641,1732536684819,-500.0,0.00041643,21]
[343267642,1732536684829,-500.0,0.00041643,21]
[343267643,1732536684839,-2609.3,0.00041643,60]
[343267644,1732536684849,-675.2,0.00041643,21]
[343267645,1732536684859,-500.0,0.00041643,21]
[343267646,1732536684870,-1143.4,0.00041643,21]
[343267647,1732536684879,-553.02,0.00041643,21]
[343267648,1732536684889,-500.0,0.00041643,21]
[343267649,1732536684898,-500.0,0.00041643,21]
[343267650,1732536684908,-660.04,0.00041643,21]
[343267651,1732536684918,-550.37,0.00041643,21]
[343267652,1732536684927,-500.0,0.00041643,120]
[343267653,1732536684938,-500.0,0.00041643,21]
[343267654,1732536684948,-915.74,0.00041643,21]
[343267655,1732536684957,-500.0,0.00041643,21]
[343267656,1732536684967,-529.4,0.00041643,21]
[343267657,1732536684977,-500.0,0.00041643,21]
[343267658,1732536684987,-661.32,0.00041643,21]
[343267659,1732536684997,-592.89,0.00041643,21]
[343267660,1732536685007,-596.54,0.00041643,21]
[343267661,1732536685017,-500.0,0.00041643,21]
[343267662,1732536685027,-500.0,0.00041643,21]
[343267663,1732536685037,-501.9,0.00041643,21]
[343267664,1732536685047,-500.0,0.00041643,21]
[343267665,1732536685056,-615.05,0.00041643,21]
[343267666,1732536685066,-500.0,0.00041643,21]
[343267667,1732536685076,-890.91,0.00041643,21]
[343267668,1732536685085,-2082.25,0.00041643,21]
[343267669,1732536685095,-500.0,0.00041643,21]
[343267670,1732536685110,-500.0,0.00041643,21]
[343267671,1732536685121,-500.0,0.00041643,21]